bitfinex-derivatives/quotes_ETHF0:USTF0_20240924
["timestamp","ask_amount","ask_price","bid_price","bid_amount"]
[1727142893228,0.37979,2633.1,2632.6,3.2078]
[1727142893434,0.4306,2632.9,2632.7,2.67]
[1727142894622,0.81043,2632.9,2632.6,3.2078]
[1727142894930,0.4306,2632.9,2632.6,3.2078]
[1727142895424,0.4306,2632.9,2632.7,2.67]
[1727142899128,0.4306,2632.9,2632.7,3.66456905]
[1727142899328,3.681,2633.4,2633.0,0.37981]
[1727142899329,0.4302,2633.3,2633.0,0.37981]
[1727142899525,0.4302,2633.3,2633.2,2.67]
[1727142899724,0.80997,2633.3,2633.0,6.87236905]
[1727142900027,0.37978,2633.2,2633.0,6.87236905]
[1727142900222,0.80997,2633.3,2633.0,2.67]
[1727142900431,0.4302,2633.3,2633.0,2.67]
[1727142901037,0.4302,2633.3,2633.2,2.67]
[1727142901226,0.4421,2633.5,2633.2,2.67]
[1727142901627,0.4421,2633.5,2633.2,3.04977]
[1727142901931,0.4421,2633.5,2633.2,2.67]
[1727142903123,0.82184,2633.5,2633.2,2.67]
[1727142903324,0.4421,2633.5,2633.0,5.8778]
[1727142903525,0.37977,2633.3,2633.0,5.8778]
[1727142903733,0.4358,2633.2,2633.0,5.8778]
[1727142904828,0.4358,2633.2,2633.0,3.2078]
[1727142905224,0.4358,2633.2,2632.8,2.67]
[1727142906328,0.4358,2633.2,2633.0,2.67]
[1727142907425,0.81558,2633.2,2633.0,2.67]
[1727142907929,0.4358,2633.2,2633.0,2.67]
[1727142909133,0.4358,2633.2,2632.9,3.2078]
[1727142909435,0.37979,2633.1,2632.7,0.8667]
[1727142909627,4.0642,2633.2,2632.7,0.8667]
[1727142909822,0.4204,2633.0,2632.7,0.8667]
[1727142910027,0.4204,2633.0,2632.7,0.4438]
[1727142911333,0.80021,2633.0,2632.7,0.4438]
[1727142912833,0.37983,2632.9,2632.7,0.4438]
[1727142913136,0.80022,2633.0,2632.7,0.4438]
[1727142915831,0.80022,2633.0,2632.6,2.67]
[1727142915832,4.2188,2633.0,2632.5,3.2078]
[1727142916046,0.37986,2632.7,2632.5,3.2078]
[1727142917343,0.79377,2632.6,2632.5,3.2078]
[1727142917632,4.59217,2632.6,2632.5,3.2078]
[1727142917841,4.2123,2632.6,2632.5,3.2078]
[1727142918038,0.4204,2633.0,2632.4,2.67]
[1727142918039,0.37984,2632.8,2632.4,2.67]
[1727142918237,0.37984,2632.8,2632.7,2.67]
[1727142919127,0.37986,2632.7,2632.5,2.67]
[1727142919635,0.37987,2632.6,2632.3,3.0967]
[1727142919834,3.2078,2632.6,2632.3,0.4267]
[1727142920036,0.80369,2632.5,2632.3,0.4267]
[1727142920235,0.427,2632.4,2632.3,0.4267]
[1727142920746,0.427,2632.4,2632.3,3.0967]
[1727142921133,3.2078,2632.9,2632.3,7.2758]
[1727142921134,3.58763,2632.9,2632.3,7.2758]
[1727142921330,3.6348,2632.9,2632.6,2.67]
[1727142921630,4.01463,2632.9,2632.6,2.67]
[1727142922135,0.37984,2632.8,2632.6,2.67]
[1727142922435,4.01463,2632.9,2632.6,2.67]
[1727142923340,3.6348,2632.9,2632.6,2.67]
[1727142924235,4.01462,2632.9,2632.6,2.67]
[1727142925635,0.37984,2632.8,2632.6,2.67]
[1727142925839,0.37984,2632.8,2632.5,0.4094]
[1727142926148,4.01463,2632.9,2632.5,0.4094]
[1727142926442,0.37984,2632.8,2632.4,2.67]
[1727142926643,0.37984,2632.8,2632.4,3.66456905]
[1727142926843,0.37986,2632.7,2632.4,3.66456905]
[1727142927047,0.37985,2632.8,2632.5,40.8]
[1727142927245,0.37985,2632.7,2632.4,0.99456905]
[1727142927435,0.78455,2632.7,2632.3,1.42126905]
[1727142927638,0.78455,2632.7,2632.3,42.22126905]
[1727142927842,0.78455,2632.7,2632.4,0.99456905]
[1727142928039,0.37984,2632.8,2632.4,3.66456905]
[1727142929338,4.01463,2632.9,2632.4,4.04445905]
[1727142929544,4.01463,2632.9,2632.5,2.35209492]
[1727142929842,4.01463,2632.9,2632.5,0.99456905]
[1727142930250,0.37984,2632.8,2632.5,0.99456905]
[1727142930437,4.01463,2632.9,2632.5,0.99456905]
[1727142930935,0.37984,2632.8,2632.5,0.99456905]
[1727142931346,3.6348,2632.9,2632.5,0.99456905]
[1727142931347,4.01463,2632.9,2632.5,0.99456905]
[1727142931538,3.6348,2632.9,2632.6,2.67]
[1727142931739,0.427,2632.9,2632.7,0.417]
[1727142932357,0.7898,2633.1,2632.7,0.417]
[1727142932541,0.7898,2633.1,2632.8,0.8483]
[1727142932945,0.41,2633.1,2632.8,0.8483]
[1727142933550,0.37982,2633.0,2632.8,0.8483]
[1727142933842,0.78981,2633.1,2632.8,0.8483]
[1727142934243,0.37981,2633.0,2632.8,0.8483]
[1727142936555,0.7898,2633.1,2632.8,0.8483]
[1727142938445,0.41,2633.1,2632.8,1.84286905]
[1727142939054,0.7898,2633.1,2632.8,1.84286905]
[1727142939554,0.37982,2633.0,2632.8,1.40316905]
[1727142941249,0.37981,2633.0,2632.8,1.40316905]
[1727142943356,0.41,2633.1,2632.8,1.40316905]
[1727142943849,0.37982,2633.0,2632.8,1.40316905]
[1727142945355,0.37982,2633.0,2632.8,0.4086]
[1727142945551,0.37982,2633.0,2632.8,1.40316905]
[1727142946756,0.41,2633.1,2632.8,1.40316905]
[1727142947056,4.4378,2632.9,2632.7,0.99456905]
[1727142947251,0.37985,2632.7,2632.6,0.99456905]
[1727142947558,0.8545,2632.8,2632.6,0.99456905]
[1727142948154,0.37985,2632.7,2632.6,0.99456905]
[1727142948354,0.37985,2632.7,2632.6,2.35316472]
[1727142948552,0.37985,2632.7,2632.6,0.99456905]
[1727142949366,0.37987,2632.6,2632.5,0.99456905]
[1727142949666,0.82387,2632.6,2632.5,0.99456905]
[1727142949850,0.82387,2632.6,2632.4,1.80916905]
[1727142950057,0.444,2632.6,2632.4,1.80916905]
[1727142950658,0.4277,2632.8,2632.5,0.99456905]
[1727142950857,0.37982,2633.0,2632.5,0.99456905]
[1727142951156,0.37982,2633.0,2632.4,2.30645358]
[1727142951157,0.37983,2632.9,2632.6,0.99456905]
[1727142952354,0.37983,2632.9,2632.7,0.99456905]
[1727142953456,0.37982,2633.0,2632.7,0.99456905]
[1727142953653,0.8204,2633.1,2632.7,0.99456905]
[1727142954063,0.8204,2633.1,2632.7,1.42346905]
[1727142954760,0.37981,2633.0,2632.7,1.42346905]
[1727142954957,0.37981,2633.0,2632.8,0.99456905]
[1727142955151,0.37981,2633.0,2632.7,1.42346905]
[1727142955358,0.37981,2633.0,2632.8,0.99456905]
[1727142956659,0.37982,2632.9,2632.8,0.99456905]
[1727142957168,0.37984,2632.8,2632.7,0.99456905]
[1727142957360,0.37985,2632.7,2632.6,0.99456905]
[1727142957555,1.24695,2632.7,2632.6,0.99456905]
[1727142958660,0.8671,2632.7,2632.6,0.99456905]
[1727142958971,1.24695,2632.7,2632.6,0.99456905]
[1727142959163,1.24695,2632.7,2632.6,2.35448968]
[1727142959564,1.24695,2632.7,2632.6,0.99456905]
[1727142959863,3.58764,2632.9,2632.6,2.35449147]
[1727142960066,3.58764,2632.9,2632.7,0.99456905]
[1727142960566,3.58763,2632.9,2632.7,0.99456905]
[1727142960963,0.37984,2632.8,2632.7,0.99456905]
[1727142961365,0.37984,2632.8,2632.6,0.99456905]
[1727142961868,0.37984,2632.8,2632.7,0.99456905]
[1727142962169,3.2078,2632.9,2632.7,0.99456905]
[1727142962563,0.37984,2632.8,2632.7,0.99456905]
[1727142963172,3.2078,2632.9,2632.7,0.99456905]
[1727142963379,1.2833,2633.1,2632.8,0.99456905]
[1727142963669,0.37982,2633.0,2632.8,0.99456905]
[1727142964272,1.6631,2633.1,2632.8,0.99456905]
[1727142964568,1.6631,2633.1,2632.8,1.40796905]
[1727142965362,0.8138,2633.1,2632.8,1.40796905]
[1727142965667,0.4337,2633.4,2633.0,1.49185358]
[1727142965971,0.4337,2633.4,2633.1,0.9962721]
[1727142966269,0.4102,2633.6,2633.2,2.79347138]
[1727142966472,0.4102,2633.6,2633.3,1.4335721]
[1727142966776,0.4102,2633.6,2633.4,0.4233]
[1727142966962,0.78993,2633.6,2633.4,0.4233]
[1727142968588,0.4102,2633.6,2633.4,0.4233]
[1727142968778,0.78992,2633.6,2633.4,0.4233]
[1727142968969,0.4102,2633.6,2633.4,0.4233]
[1727142969370,8.9742837,2633.8,2633.4,0.4233]
[1727142969571,4.9134837,2633.8,2633.4,3.47305]
[1727142969771,4.9134837,2633.8,2633.5,0.9962721]
[1727142970077,4.9134837,2633.8,2633.5,1.3760121]
[1727142970282,4.9134837,2633.8,2633.6,0.9962721]
[1727142970472,4.9134837,2633.8,2633.7,0.4391]
[1727142970667,4.9134837,2633.8,2633.7,0.8466]
[1727142970878,4.9134837,2633.8,2633.7,0.4075]
[1727142971176,0.37972,2633.7,2633.4,1.4195721]
[1727142971373,0.37972,2633.7,2633.4,1.8270721]
[1727142971678,5.3173837,2633.8,2633.4,1.8270721]
[1727142971679,5.3173837,2633.8,2633.4,0.8308]
[1727142971980,3.58754,2633.6,2633.4,0.8308]
[1727142972182,0.37976,2633.4,2633.2,0.9962721]
[1727142972571,0.81476,2633.4,2633.2,0.9962721]
[1727142972971,0.81476,2633.4,2633.1,0.4353]
[1727142972972,0.81476,2633.4,2633.1,1.4315721]
[1727142974378,0.81476,2633.4,2633.1,0.4353]
[1727142976878,0.37977,2633.3,2633.1,0.4353]
[1727142977390,3.2078,2633.3,2633.0,0.4074]
[1727142977687,0.37978,2633.2,2633.0,0.4074]
[1727142977988,0.37979,2633.1,2633.0,0.4074]
[1727142979783,0.37979,2633.1,2632.8,0.419]
[1727142979986,0.4025,2633.0,2632.8,0.419]
[1727142980988,0.4025,2633.0,2632.7,0.407]
[1727142980989,3.0725,2633.0,2632.7,0.407]
[1727142981195,0.37986,2632.7,2632.5,0.4447]
[1727142981491,3.2078,2632.7,2632.5,0.4447]
[1727142981692,0.81057,2632.6,2632.5,0.4447]
[1727142981892,0.4307,2632.6,2632.5,0.4447]
[1727142983389,0.81057,2632.6,2632.4,0.4282]
[1727142983599,1.24177,2632.6,2632.4,0.4282]
[1727142984694,0.8619,2632.6,2632.4,0.4282]
[1727142984889,1.24177,2632.6,2632.4,0.4282]
[1727142985989,0.8619,2632.6,2632.4,0.4282]
[1727142986893,1.24178,2632.6,2632.4,0.4282]
[1727142989395,0.8619,2632.6,2632.4,0.4282]
[1727142989704,1.24177,2632.6,2632.4,0.4282]
[1727142992297,0.37988,2632.5,2632.4,0.4282]
[1727142996703,0.8619,2632.6,2632.4,0.4282]
[1727142996904,0.37988,2632.5,2632.4,0.4282]
[1727142998098,0.8619,2632.6,2632.4,0.4282]
[1727142998099,1.24177,2632.6,2632.4,0.4282]
[1727142999306,0.8619,2632.6,2632.4,0.4282]
[1727142999604,1.24177,2632.6,2632.4,0.4282]
[1727143001312,0.8619,2632.6,2632.4,0.4282]
[1727143001500,3.2078,2632.8,2632.5,1.23]
[1727143001814,3.58765,2632.8,2632.4,1.6582]
[1727143004611,3.2078,2632.8,2632.4,1.6582]
[1727143005313,3.58764,2632.8,2632.4,1.6582]
[1727143006012,0.37984,2632.8,2632.4,1.6582]
[1727143006713,4.42013,2632.9,2632.4,2.03809]
[1727143006911,4.42013,2632.9,2632.4,3.0343621]
[1727143006912,1.21233,2632.9,2632.4,3.0343621]
[1727143007116,1.21233,2632.9,2632.4,2.6544721]
[1727143007117,0.37984,2632.8,2632.4,2.6544721]
[1727143007613,0.37984,2632.8,2632.4,3.0343621]
[1727143008706,0.37984,2632.8,2632.4,2.6544721]
[1727143010017,0.37984,2632.8,2632.4,3.0343621]
[1727143010503,0.37984,2632.8,2632.4,2.6544721]
[1727143010706,0.37985,2632.7,2632.4,2.6544721]
[1727143013220,1.23,2632.6,2632.4,0.4282]
[1727143013519,1.23,2632.6,2632.3,0.9962721]
[1727143013520,0.3799,2632.4,2632.2,5.0879721]
[1727143013709,1.25379,2632.5,2632.2,5.0879721]
[1727143014014,0.4397,2632.4,2632.2,5.0879721]
[1727143016918,0.81961,2632.4,2632.2,1.8801721]
[1727143017118,0.81961,2632.4,2632.2,0.4447]
[1727143017413,0.81961,2632.4,2632.2,1.4409721]
[1727143018203,0.81961,2632.4,2632.2,0.4447]
[1727143018204,0.4397,2632.4,2632.2,0.4447]
[1727143018707,0.4397,2632.4,2632.2,1.4409721]
[1727143019317,0.8196,2632.4,2632.2,1.4409721]
[1727143019518,0.4397,2632.4,2632.2,1.4409721]
[1727143020119,0.8196,2632.4,2632.2,1.4409721]
[1727143020321,0.8196,2632.4,2632.3,0.9962721]
[1727143020513,0.4397,2632.4,2632.2,1.4409721]
[1727143020709,0.81961,2632.4,2632.2,1.4409721]
[1727143021021,7.728,2633.0,2632.3,4.5839721]
[1727143021022,0.37984,2632.8,2632.3,4.5839721]
[1727143021309,0.37984,2632.8,2632.6,1.23]
[1727143021515,1.25343,2632.9,2632.6,2.22514421]
[1727143021715,1.25343,2632.9,2632.7,0.4387]
[1727143022013,0.37984,2632.8,2632.7,0.4387]
[1727143022516,1.25343,2632.9,2632.7,0.4387]
[1727143022820,0.8736,2632.9,2632.7,0.4387]
[1727143023315,1.25343,2632.9,2632.7,0.4387]
[1727143023718,0.37984,2632.8,2632.7,1.43384421]
[1727143023919,0.8736,2632.9,2632.7,1.43384421]
[1727143024217,1.25343,2632.9,2632.7,1.43384421]
[1727143024415,0.8736,2632.9,2632.7,1.43384421]
[1727143024820,0.8736,2632.9,2632.7,1.84494421]
[1727143025027,1.25343,2632.9,2632.7,1.84494421]
[1727143025723,0.8736,2632.9,2632.7,1.84494421]
[1727143026418,0.8736,2632.9,2632.8,0.99514421]
[1727143026617,0.8736,2632.9,2632.7,1.84494421]
[1727143026820,1.25343,2632.9,2632.7,1.84494421]
[1727143027210,0.8736,2632.9,2632.7,1.84494421]
[1727143028119,0.8736,2632.9,2632.8,0.99514421]
[1727143028514,1.25343,2632.9,2632.7,1.84494421]
[1727143029019,1.25343,2632.9,2632.8,0.99514421]
[1727143029217,1.25343,2632.9,2632.7,1.84494421]
[1727143029415,1.25343,2632.9,2632.8,0.99514421]
[1727143029613,1.25343,2632.9,2632.7,1.84494421]
[1727143029815,1.25343,2632.9,2632.8,0.99514421]
[1727143030011,1.25343,2632.9,2632.7,1.84494421]
[1727143030329,1.25343,2632.9,2632.8,0.99514421]
[1727143031213,0.8736,2632.9,2632.8,0.99514421]
[1727143032318,1.25342,2632.9,2632.8,0.99514421]
[1727143032522,1.25342,2632.9,2632.7,1.84494421]
[1727143033219,4.09586669,2633.4,2632.7,1.84494421]
[1727143033220,3.2078,2633.3,2632.8,7.81817231]
[1727143033418,4.00776,2633.4,2633.1,0.99616099]
[1727143033618,4.00776,2633.4,2633.2,0.4223]
[1727143034317,3.628,2633.4,2633.3,1.23]
[1727143034519,3.2078,2633.4,2633.3,2.66336099]
[1727143035419,3.2078,2633.4,2633.3,1.43336099]
[1727143036229,3.2078,2633.4,2633.3,0.4372]
[1727143037122,3.58756,2633.4,2633.2,1.41846099]
[1727143037328,0.4556,2633.3,2633.2,0.4223]
[1727143037629,1.6856,2633.3,2633.0,1.41226099]
[1727143037815,0.4333,2633.2,2633.0,1.85326099]
[1727143043122,0.4333,2633.2,2633.0,0.8571]
[1727143043528,0.81308,2633.2,2633.0,0.441]
[1727143043732,0.37979,2633.1,2633.0,0.441]
[1727143045034,1.23968,2633.2,2633.0,0.441]
[1727143046423,0.8599,2633.2,2633.0,0.441]
[1727143046634,1.23969,2633.2,2633.0,0.441]
[1727143047331,0.37979,2633.1,2633.0,0.441]
[1727143047729,1.23969,2633.2,2633.0,0.441]
[1727143049335,0.8599,2633.2,2633.0,0.441]
[1727143050340,0.4556,2633.3,2633.1,0.4225]
[1727143051839,0.83537,2633.3,2633.1,0.4225]
[1727143052643,0.4556,2633.3,2633.1,0.4225]
[1727143052843,0.83537,2633.3,2633.1,0.4225]
[1727143053149,0.83537,2633.3,2633.0,0.441]
[1727143053835,0.83537,2633.3,2633.0,41.241]
[1727143054440,0.83537,2633.3,2633.0,0.441]
[1727143055740,0.37978,2633.2,2633.0,0.441]
[1727143056143,0.9103,2633.1,2633.0,0.441]
[1727143056942,0.37981,2633.0,2632.8,0.4489]
[1727143057140,0.37981,2633.0,2632.7,1.88986099]
[1727143057141,0.37982,2632.9,2632.7,1.88986099]
[1727143057447,0.37982,2632.9,2632.7,1.43546099]
[1727143057448,0.80083,2632.9,2632.7,1.43546099]
[1727143057651,1.60984,2632.8,2632.7,1.43546099]
[1727143057838,1.60985,2632.8,2632.5,1.42676099]
[1727143058141,0.8818,2632.7,2632.5,0.4306]
[1727143058849,1.26165,2632.7,2632.5,0.4306]
[1727143059042,0.8818,2632.7,2632.5,0.4306]
[1727143060052,0.37988,2632.5,2632.4,4.62556099]
[1727143060241,4.4378,2632.6,2632.2,0.99616099]
[1727143060440,0.37991,2632.3,2632.1,1.84796099]
[1727143060844,0.37992,2632.2,2632.1,0.99616099]
[1727143061047,0.81602,2632.2,2632.0,0.4216]
[1727143061352,0.4361,2632.2,2632.0,0.4216]
[1727143062148,0.389,2632.3,2632.0,5.85556099]
[1727143062941,0.389,2632.3,2632.1,0.99616099]
[1727143063146,0.389,2632.3,2632.0,5.85556099]
[1727143063852,0.76891,2632.3,2632.0,5.85556099]
[1727143064251,0.76891,2632.3,2632.0,4.62556099]
[1727143064552,0.76891,2632.3,2632.0,1.41776099]
[1727143068251,0.76891,2632.3,2632.0,0.4216]
[1727143070652,0.4518,2632.4,2632.0,0.80154]
[1727143070853,0.37987,2632.6,2632.2,0.37992]
[1727143071055,0.37989,2632.5,2632.3,0.4272]
[1727143071253,0.37989,2632.5,2632.3,0.8357]
[1727143071942,0.37987,2632.6,2632.3,0.8357]
[1727143072356,0.37987,2632.6,2632.4,0.3937]
[1727143072943,0.37988,2632.5,2632.4,0.3937]
[1727143074342,0.37987,2632.6,2632.4,0.3937]
[1727143074542,0.37988,2632.5,2632.3,0.4085]
[1727143074855,0.37988,2632.5,2632.1,0.8261]
[1727143074856,0.4104,2632.4,2632.1,0.8261]
[1727143075047,0.4104,2632.4,2632.1,1.20604]
[1727143075248,0.4104,2632.4,2632.1,0.8261]
[1727143075657,0.7903,2632.4,2632.1,0.8261]
[1727143075858,0.4245,2632.3,2632.1,0.8261]
[1727143076646,0.4245,2632.3,2632.1,0.4098]
[1727143076647,0.80442,2632.3,2632.1,0.4098]
[1727143076847,1.19462,2632.3,2632.1,0.4098]
[1727143077047,0.37992,2632.2,2632.1,0.4098]
[1727143077257,0.37996,2632.0,2631.8,0.4163]
[1727143077556,0.424,2631.9,2631.8,0.4163]
[1727143078354,0.38,2631.7,2631.4,0.99616099]
[1727143078545,0.38,2631.7,2631.3,2.21246099]
[1727143079059,0.38,2631.7,2631.3,1.2163]
[1727143080258,0.76569,2631.8,2631.3,1.59635]
[1727143080649,0.76569,2631.8,2631.3,4.80415]
[1727143081058,0.3857,2631.8,2631.4,0.38003]
[1727143081455,0.76569,2631.8,2631.3,4.80415]
[1727143083458,0.3857,2631.8,2631.3,4.4241]
[1727143083758,0.38,2631.7,2631.3,4.4241]
[1727143084255,0.76569,2631.8,2631.3,4.80415]
[1727143085049,0.38,2631.7,2631.3,4.4241]
[1727143086461,5.8778,2631.6,2631.0,0.99616099]
[1727143086758,5.8778,2631.6,2631.0,0.8113]
[1727143086759,3.2078,2631.4,2631.0,0.8113]
[1727143086965,0.80076,2631.3,2631.0,0.8113]
[1727143088362,0.38008,2631.1,2630.7,40.8]
[1727143088559,0.7973,2631.0,2630.7,41.6147]
[1727143088954,0.4172,2631.0,2630.7,0.3868]
[1727143089163,0.4172,2631.0,2630.4,0.4279]
[1727143089164,3.0675,2630.9,2630.4,0.4279]
[1727143089365,3.0675,2630.9,2630.2,0.3868]
[1727143089366,2.67,2630.7,2630.2,0.3868]
[1727143089563,3.0502,2630.3,2630.2,0.3868]
[1727143089765,0.3802,2630.3,2630.2,0.3868]
[1727143090067,0.3802,2630.3,2630.0,0.8169]
[1727143090068,0.38019,2630.4,2630.0,0.8169]
[1727143090258,0.4049,2630.3,2630.0,0.8169]
[1727143090459,0.4049,2630.3,2630.0,1.19713]
[1727143090764,0.4049,2630.3,2630.0,0.8169]
[1727143090956,0.4172,2630.4,2630.0,1.19714]
[1727143091156,0.4172,2630.4,2630.0,0.8169]
[1727143091353,0.3918,2630.6,2630.1,3.2078]
[1727143091557,0.3918,2630.6,2630.2,0.4154]
[1727143093761,0.3918,2630.6,2630.2,0.79561]
[1727143094560,0.78243,2630.8,2630.4,3.2078]
[1727143094760,0.78243,2630.8,2630.5,0.8146]
[1727143095159,0.78243,2630.8,2630.6,40.8]
[1727143096467,0.4023,2630.8,2630.6,40.8]
[1727143096663,0.4023,2630.8,2630.7,0.4283]
[1727143097766,3.605,2630.9,2630.7,0.4283]
[1727143098173,0.7896,2631.0,2630.7,0.4283]
[1727143099475,0.3926,2631.1,2630.7,3.6361]
[1727143100575,0.77268,2631.1,2630.7,3.6361]
[1727143102574,0.3926,2631.1,2630.7,3.6361]
[1727143102774,4.40186,2631.3,2630.7,3.6361]
[1727143103075,4.40186,2631.3,2630.7,4.01623]
[1727143103475,0.38007,2631.2,2630.7,0.4283]
[1727143103870,0.38007,2631.2,2630.7,0.80844]
[1727143104270,0.38007,2631.2,2630.7,4.01624]
[1727143105578,4.0218,2631.3,2630.7,3.6361]
[1727143105874,4.78506,2631.3,2630.8,0.38011]
[1727143106076,4.78506,2631.3,2630.9,0.38011]
[1727143106077,4.405,2631.3,2630.9,0.38011]
[1727143106283,4.405,2631.3,2631.0,0.8114]
[1727143106484,4.405,2631.3,2631.1,0.4111]
[1727143106674,1.19406,2631.3,2631.1,0.4111]
[1727143106874,0.79896,2631.3,2631.1,0.4111]
[1727143107874,0.38007,2631.2,2631.1,0.4111]
[1727143108173,0.79896,2631.3,2631.1,0.4111]
[1727143108878,0.79896,2631.3,2630.7,3.2078]
[1727143108879,2.67,2631.2,2630.7,3.2078]
[1727143109083,2.67,2631.0,2630.7,3.6189]
[1727143109569,3.84111,2631.0,2630.7,3.6189]
[1727143110379,0.4173,2630.9,2630.7,3.6189]
[1727143112383,0.4173,2630.9,2630.7,0.4111]
[1727143113280,3.05013,2630.8,2630.3,3.58799]
[1727143113481,3.05013,2630.8,2630.4,0.3991]
[1727143113982,3.05013,2630.8,2630.5,40.8]
[1727143115378,0.79742,2630.9,2630.4,0.77927]
[1727143115784,0.79742,2630.9,2630.5,0.38017]
[1727143116485,0.79742,2630.9,2630.4,41.1991]
[1727143116486,0.38013,2630.8,2630.4,41.57928]
[1727143117479,0.79742,2630.9,2630.5,0.38017]
[1727143120082,0.79742,2630.9,2630.4,41.57928]
[1727143121786,0.79742,2630.9,2630.5,0.38017]
[1727143123488,0.791,2631.0,2630.5,0.99616099]
[1727143123684,1.15287,2631.2,2630.8,0.38012]
[1727143123879,1.15287,2631.2,2630.9,0.398]
[1727143124683,0.7728,2631.2,2630.9,0.398]
[1727143126583,1.15287,2631.2,2630.9,0.398]
[1727143128384,0.38009,2631.1,2630.9,0.398]
[1727143128891,0.7862,2631.0,2630.7,4.20396099]
[1727143129091,0.7862,2631.0,2630.6,1.80686099]
[1727143129092,0.38013,2630.8,2630.6,1.80686099]
[1727143129291,0.7768,2630.7,2630.6,1.90074149]
[1727143129487,0.7768,2630.7,2630.6,2.74579266]
[1727143129684,0.7768,2630.7,2630.6,1.40184723]
[1727143129890,0.7768,2630.7,2630.6,0.4065]
[1727143130392,0.7768,2630.7,2630.6,1.40184723]
[1727143131186,0.7768,2630.7,2630.6,2.7460943]
[1727143131486,0.7768,2630.7,2630.6,3.24498856]
[1727143132181,3.82694,2630.7,2630.6,2.83848856]
[1727143132381,3.82694,2630.7,2630.4,5.19693811]
[1727143132382,3.4468,2630.7,2630.5,0.99623473]
[1727143132694,0.4166,2630.6,2630.5,0.99623473]
[1727143132887,0.4166,2630.6,2630.5,3.67522096]
[1727143134895,3.05012,2630.9,2630.5,2.56114947]
[1727143135092,0.38011,2630.9,2630.7,0.99632131]
[1727143135391,0.38011,2631.0,2630.7,0.99632131]
[1727143135592,0.38011,2630.9,2630.8,0.423]
[1727143136892,0.3801,2631.0,2630.8,0.423]
[1727143137199,0.3801,2631.0,2630.8,1.41932131]
[1727143137389,0.38011,2630.9,2630.8,1.41932131]
[1727143137599,0.38013,2630.8,2630.7,0.99632131]
[1727143137783,0.38013,2630.8,2630.6,0.99632131]
[1727143137988,0.4208,2630.7,2630.6,0.99677595]
[1727143138301,0.4208,2630.7,2630.6,1.34587806]
[1727143138594,0.4208,2630.7,2630.6,2.84036003]
[1727143138791,0.4208,2630.7,2630.6,1.34595553]
[1727143139096,0.4208,2630.7,2630.6,2.8404375]
[1727143142092,0.4208,2630.7,2630.6,2.84071305]
[1727143142600,0.4208,2630.7,2630.6,1.34623108]
[1727143142788,0.4208,2630.7,2630.6,2.34329362]
[1727143142991,1.2246,2630.7,2630.6,2.34329384]
[1727143143198,1.60474,2630.7,2630.6,2.34327954]
[1727143143390,11.0262,2630.7,2630.4,4.20484846]
[1727143143590,3.2078,2630.5,2630.2,0.99704846]
[1727143143799,3.0502,2630.3,2630.2,0.99704846]
[1727143144091,2.67,2630.3,2630.1,0.99704846]
[1727143144295,0.77341,2630.2,2630.1,0.99704846]
[1727143144498,1.55871,2630.2,2630.0,0.99704846]
[1727143144698,3.05023,2630.1,2630.0,0.99704846]
[1727143144902,3.05023,2630.1,2629.9,1.59053108]
[1727143145694,2.67,2630.1,2629.9,1.59053108]
[1727143145891,1.55872,2630.2,2629.9,1.59053108]
[1727143146799,0.38023,2630.1,2629.9,1.59053108]
[1727143147102,0.38023,2630.1,2629.9,0.59348262]
[1727143147304,0.38024,2630.0,2629.9,0.59348262]
[1727143147498,4.18264,2630.0,2629.9,0.59348262]
[1727143147990,10.18264,2630.0,2629.9,0.59348262]
[1727143148803,4.18264,2630.0,2629.9,0.59348262]
[1727143150602,0.38026,2629.9,2629.4,0.38033]
[1727143150801,3.05026,2629.9,2629.4,0.38033]
[1727143151896,5.8778,2630.1,2629.5,3.2078]
[1727143152196,9.4578,2630.1,2629.7,0.38028]
[1727143152406,9.4578,2630.1,2629.8,0.79536]
[1727143152702,3.2078,2630.1,2629.8,0.79536]
[1727143153795,3.2078,2630.1,2629.9,0.38025]
[1727143153989,3.2078,2630.1,2629.8,0.79536]
[1727143154197,3.2078,2630.1,2629.9,0.38026]
[1727143154591,3.2078,2630.1,2630.0,0.4097]
[1727143154804,0.3932,2630.2,2630.0,0.4097]
[1727143158106,2.67,2630.1,2629.8,0.4151]
[1727143158297,0.38024,2630.0,2629.8,0.7933]
[1727143159112,3.43193,2630.1,2629.8,0.7933]
[1727143159308,3.0517,2630.1,2629.8,0.7933]
[1727143159510,3.43194,2630.1,2629.8,0.7933]
[1727143161505,3.0517,2630.1,2629.8,0.7933]
[1727143161699,3.43193,2630.1,2629.8,0.7933]
[1727143162509,3.98121,2630.2,2629.8,0.7933]
[1727143162703,3.98121,2630.2,2629.8,4.38136]
[1727143162704,0.3932,2630.2,2629.8,4.38136]
[1727143162912,0.77341,2630.2,2629.8,4.38136]
[1727143163113,0.77341,2630.2,2629.8,4.38137]
[1727143164107,0.77341,2630.2,2629.8,1.17357]
[1727143165106,0.77341,2630.2,2629.8,4.38137]
[1727143165308,0.77341,2630.2,2629.8,4.0011]
[1727143165510,2.67,2630.1,2629.8,4.0011]
[1727143165699,2.67,2630.1,2629.8,0.7933]
[1727143165902,3.05024,2630.1,2629.8,0.3782]
[1727143166205,0.4024,2630.0,2629.8,0.3782]
[1727143167307,0.78264,2630.0,2629.8,0.3782]
[1727143167714,3.05026,2629.9,2629.6,0.4188]
[1727143167901,0.401,2629.8,2629.6,0.8179]
[1727143168103,0.8122,2629.8,2629.6,0.8179]
[1727143170203,0.4112,2629.8,2629.6,0.8179]
[1727143170901,0.78265,2630.0,2629.6,0.8179]
[1727143170902,0.4024,2630.0,2629.6,0.8179]